bitfinex-derivatives/quotes_BTCF0:USTF0_20241015
["timestamp","ask_amount","ask_price","bid_price","bid_amount"]
[1728993662145,0.07641,65447.0,65446.0,0.256408]
[1728993662733,0.076402,65453.0,65452.0,0.0764]
[1728993662947,0.076402,65453.0,65452.0,0.2564]
[1728993663331,0.076402,65453.0,65452.0,0.3589024]
[1728993664949,0.437195,65459.0,65458.0,0.076396]
[1728993665143,0.076395,65459.0,65458.0,0.076396]
[1728993665339,0.00229237,65465.0,65461.0,0.07639]
[1728993665340,0.076391,65462.0,65461.0,0.07639]
[1728993665536,0.07868037,65465.0,65464.0,0.076389]
[1728993665739,0.07868037,65465.0,65464.0,0.35763073]
[1728993666240,0.00229237,65465.0,65464.0,0.35763073]
[1728993666549,0.076384,65469.0,65468.0,0.076384]
[1728993666751,0.076384,65469.0,65468.0,0.256384]
[1728993667150,0.38888677,65474.0,65468.0,0.18]
[1728993667151,0.3608,65474.0,65468.0,0.18]
[1728993667347,0.3608,65474.0,65473.0,0.256386]
[1728993667735,0.437185,65474.0,65473.0,0.256386]
[1728993667941,0.3608,65474.0,65473.0,0.31740842]
[1728993668548,0.3608,65474.0,65473.0,0.256386]
[1728993668844,0.3608,65474.0,65473.0,0.257386]
[1728993669041,0.076382,65477.0,65473.0,0.257386]
[1728993669042,0.076382,65477.0,65476.0,0.076382]
[1728993669242,0.076382,65477.0,65476.0,0.256382]
[1728993669846,0.076382,65477.0,65476.0,0.30206129]
[1728993670043,0.076382,65477.0,65476.0,0.256382]
[1728993671254,0.02929909,65483.0,65476.0,0.18]
[1728993671454,0.02929909,65483.0,65474.0,0.09164456]
[1728993671455,0.07866521,65483.0,65482.0,0.256375]
[1728993671842,0.07866521,65483.0,65482.0,0.18]
[1728993672142,0.07866521,65483.0,65476.0,0.077382]
[1728993672143,0.076375,65482.0,65476.0,0.077382]
[1728993672343,0.076375,65482.0,65476.0,0.078382]
[1728993672344,0.001,65477.0,65476.0,0.078382]
[1728993672544,0.077381,65477.0,65476.0,0.078382]
[1728993672744,0.077381,65477.0,65476.0,0.076382]
[1728993672949,0.076381,65477.0,65476.0,0.076382]
[1728993674137,0.3608,65479.0,65475.0,0.18]
[1728993674349,0.3608,65479.0,65478.0,0.25638]
[1728993674648,0.07866621,65483.0,65482.0,0.076375]
[1728993674956,0.07866621,65483.0,65482.0,0.256375]
[1728993675151,0.00229121,65483.0,65482.0,0.256375]
[1728993675753,0.00229121,65483.0,65482.0,0.257375]
[1728993676054,0.00329121,65483.0,65482.0,0.258375]
[1728993676443,0.00329121,65483.0,65482.0,0.257375]
[1728993676639,0.00329121,65483.0,65482.0,0.28561982]
[1728993677946,0.07966521,65483.0,65482.0,0.258375]
[1728993678150,0.07966521,65483.0,65482.0,0.002]
[1728993678349,0.25966521,65483.0,65482.0,0.002]
[1728993678556,0.25966521,65483.0,65472.0,0.0036]
[1728993678557,0.076386,65473.0,65472.0,0.0036]
[1728993678750,0.076386,65473.0,65470.0,0.076389]
[1728993678751,0.076388,65471.0,65470.0,0.076389]
[1728993678948,0.076392,65468.0,65467.0,0.076392]
[1728993679253,0.076392,65468.0,65462.0,0.2751]
[1728993679254,0.076398,65464.0,65463.0,0.076396]
[1728993679559,0.3608,65473.0,65459.0,0.00229121]
[1728993679560,0.0764,65461.0,65459.0,0.00229121]
[1728993679857,0.18,65460.0,65459.0,0.00229121]
[1728993680053,0.256401,65460.0,65459.0,0.07869321]
[1728993680354,0.256401,65460.0,65459.0,0.00229121]
[1728993680547,0.29234596,65460.0,65459.0,0.00229121]
[1728993680853,0.076409,65453.0,65452.0,0.08001]
[1728993681050,0.65315396,65453.0,65452.0,0.07641]
[1728993681354,0.65315396,65453.0,65448.0,0.076414]
[1728993681355,0.076414,65449.0,65448.0,0.076414]
[1728993682351,0.11175342,65449.0,65448.0,0.076414]
[1728993682548,0.03533942,65449.0,65448.0,0.076414]
[1728993683157,0.03633942,65449.0,65448.0,0.083414]
[1728993683556,0.03733942,65449.0,65448.0,0.090414]
[1728993684052,0.11375342,65449.0,65448.0,0.090414]
[1728993686455,0.078414,65449.0,65448.0,0.090414]
[1728993687059,0.258414,65449.0,65448.0,0.014]
[1728993687945,0.288514,65449.0,65448.0,0.014]
[1728993690657,0.076423,65441.0,65440.0,0.0036]
[1728993690955,0.07643,65437.0,65436.0,0.076429]
[1728993691546,0.437224,65441.0,65440.0,0.076424]
[1728993691751,0.0321,65449.0,65448.0,0.076415]
[1728993691952,0.002,65449.0,65448.0,0.076415]
[1728993692155,0.001,65449.0,65448.0,0.076415]
[1728993692458,0.07870056,65455.0,65454.0,0.076408]
[1728993692657,0.076408,65455.0,65454.0,0.256408]
[1728993693352,0.3608,65457.0,65456.0,0.076406]
[1728993693658,0.437205,65457.0,65456.0,0.076406]
[1728993693855,0.076407,65455.0,65454.0,0.18]
[1728993694155,0.076407,65455.0,65454.0,0.256408]
[1728993694460,0.438005,65457.0,65456.0,0.076406]
[1728993694764,0.437205,65457.0,65456.0,0.076406]
[1728993694957,0.440205,65457.0,65456.0,0.076406]
[1728993695157,0.3638,65457.0,65456.0,0.076406]
[1728993696252,0.3668,65457.0,65456.0,0.076406]
[1728993696953,0.3638,65457.0,65456.0,0.080406]
[1728993697157,0.3608,65457.0,65456.0,0.083406]
[1728993697360,0.437205,65457.0,65456.0,0.007]
[1728993697861,0.437205,65457.0,65456.0,0.004]
[1728993698454,0.076407,65455.0,65454.0,0.18]
[1728993698752,0.07641,65452.0,65451.0,0.256411]
[1728993700258,0.07641,65452.0,65451.0,0.266411]
[1728993700462,0.076406,65456.0,65455.0,0.076406]
[1728993700770,0.3608,65457.0,65456.0,0.076406]
[1728993701565,0.3608,65457.0,65456.0,0.107206]
[1728993702456,0.3608,65457.0,65456.0,0.565526]
[1728993702661,0.0036,65468.0,65467.0,0.076393]
[1728993702862,0.076391,65469.0,65468.0,0.07639]
[1728993703059,0.076391,65469.0,65468.0,0.25639]
[1728993703264,0.076391,65469.0,65468.0,0.18]
[1728993703561,0.076394,65466.0,65465.0,0.256395]
[1728993704562,0.3608,65471.0,65470.0,0.076389]
[1728993705369,0.076385,65475.0,65474.0,0.076385]
[1728993705565,0.076385,65475.0,65474.0,0.256385]
[1728993706357,0.3608,65477.0,65476.0,0.076382]
[1728993706561,0.437181,65477.0,65476.0,0.076382]
[1728993706964,0.076384,65475.0,65474.0,0.18]
[1728993707470,0.090384,65475.0,65474.0,0.181]
[1728993707664,0.090384,65475.0,65474.0,0.001]
[1728993707863,0.076384,65475.0,65470.0,0.001]
[1728993708162,0.437181,65477.0,65468.0,0.076391]
[1728993708163,0.437188,65471.0,65468.0,0.076391]
[1728993708468,0.076391,65469.0,65468.0,0.076391]
[1728993708658,0.076391,65469.0,65468.0,0.256391]
[1728993708659,0.11253786,65469.0,65468.0,0.256391]
[1728993708858,0.03614686,65469.0,65468.0,0.256391]
[1728993709261,0.07639,65470.0,65469.0,0.076391]
[1728993709468,0.07639,65470.0,65469.0,0.256391]
[1728993709670,0.11271012,65470.0,65469.0,0.256391]
[1728993710563,0.05032012,65470.0,65469.0,0.257391]
[1728993710768,0.12670912,65470.0,65469.0,0.257391]
[1728993711771,0.13970912,65470.0,65469.0,0.258391]
[1728993716369,0.06329788,65470.0,65469.0,0.716631]
[1728993716571,0.027,65470.0,65469.0,0.716631]
[1728993716769,0.0008,65481.0,65469.0,0.64024]
[1728993716963,0.0313,65488.0,65484.0,0.076373]
[1728993716964,0.076375,65485.0,65484.0,0.076373]
[1728993717268,0.076375,65485.0,65484.0,0.256373]
[1728993717471,0.076375,65485.0,65484.0,0.18]
[1728993717775,0.076374,65483.0,65482.0,0.076375]
[1728993719576,0.078374,65483.0,65482.0,0.077375]
[1728993719770,0.082374,65483.0,65482.0,0.078375]
[1728993720472,0.006,65483.0,65482.0,0.078375]
[1728993721570,0.082374,65483.0,65482.0,0.078375]
[1728993722380,0.006,65483.0,65482.0,0.078375]
[1728993722785,0.082374,65483.0,65482.0,0.002]
[1728993723079,0.262374,65483.0,65482.0,0.002]
[1728993724675,0.082374,65483.0,65482.0,0.002]
[1728993724872,0.006,65483.0,65482.0,0.078375]
[1728993728175,0.006,65483.0,65482.0,0.10650981]
[1728993728773,0.3608,65491.0,65490.0,0.076366]
[1728993728972,0.3608,65491.0,65490.0,0.256366]
[1728993729882,0.3648,65491.0,65490.0,0.257366]
[1728993730473,0.3608,65491.0,65490.0,0.256366]
[1728993730789,0.004,65491.0,65490.0,0.258366]
[1728993731681,0.14082331,65491.0,65490.0,0.18195426]
[1728993731979,0.14082331,65491.0,65490.0,0.64003426]
[1728993731980,0.08519587,65491.0,65490.0,0.64003426]
[1728993732284,0.08528129,65491.0,65490.0,0.64003426]
[1728993732679,0.08528129,65491.0,65490.0,0.66692014]
[1728993732882,0.3608,65499.0,65491.0,0.076365]
[1728993733076,0.3608,65499.0,65498.0,0.256357]
[1728993733881,0.437156,65499.0,65498.0,0.256357]
[1728993734275,0.47991748,65499.0,65498.0,0.256357]
[1728993734977,0.66543701,65499.0,65498.0,0.256357]
[1728993735171,0.58908101,65499.0,65498.0,0.257357]
[1728993735379,0.4522577,65499.0,65498.0,0.257357]
[1728993735577,0.40356148,65499.0,65498.0,0.257357]
[1728993735777,0.40356148,65499.0,65498.0,0.258357]
[1728993737089,0.40350788,65499.0,65498.0,0.258357]
[1728993737379,0.40350823,65499.0,65498.0,0.258357]
[1728993737780,0.04270823,65499.0,65498.0,0.28529538]
[1728993737978,0.076351,65504.0,65503.0,0.076351]
[1728993738180,0.04303616,65504.0,65503.0,0.256351]
[1728993738581,0.076347,65507.0,65506.0,0.076347]
[1728993738779,0.076347,65507.0,65506.0,0.256347]
[1728993740686,0.076347,65507.0,65506.0,0.076347]
[1728993741183,0.076347,65507.0,65506.0,0.001]
[1728993741184,0.256347,65507.0,65506.0,0.001]
[1728993741790,0.256347,65507.0,65506.0,0.002]
[1728993742287,0.617147,65507.0,65506.0,0.002]
[1728993742489,0.437147,65507.0,65506.0,0.002]
[1728993742882,0.076344,65509.0,65506.0,0.002]
[1728993743091,0.076344,65509.0,65508.0,0.256345]
[1728993744084,0.076344,65509.0,65506.0,0.002]
[1728993744085,0.076346,65507.0,65506.0,0.002]
[1728993744385,0.076346,65507.0,65506.0,0.078347]
[1728993745294,0.076346,65507.0,65506.0,0.076347]
[1728993745481,0.3608,65509.0,65508.0,0.076345]
[1728993745800,0.11083024,65513.0,65512.0,0.07634]
[1728993746098,0.11083024,65513.0,65512.0,0.25634]
[1728993746591,0.24038081,65513.0,65512.0,0.057821]
[1728993746797,0.40767577,65513.0,65512.0,0.057821]
[1728993746984,0.40767577,65513.0,65512.0,0.134161]
[1728993747183,0.465856,65513.0,65512.0,0.07022216]
[1728993747482,0.29856104,65513.0,65512.0,0.07022216]
[1728993747682,0.29856104,65513.0,65512.0,0.07122216]
[1728993747990,0.65936104,65513.0,65512.0,0.001]
[1728993748189,0.65936104,65513.0,65512.0,0.002]
[1728993749989,0.076352,65502.0,65501.0,0.076352]
[1728993750290,0.076352,65502.0,65494.0,0.076359]
[1728993750291,0.076361,65495.0,65494.0,0.076359]
[1728993750589,0.15100824,65495.0,65494.0,0.076359]
[1728993751792,0.11090317,65495.0,65494.0,0.076359]
[1728993751995,0.11090317,65495.0,65494.0,0.077359]
[1728993752292,0.076361,65495.0,65494.0,0.078359]
[1728993754697,0.09228634,65497.0,65496.0,0.076359]
[1728993754899,0.09228634,65497.0,65496.0,0.256359]
[1728993755690,0.09228634,65497.0,65496.0,0.617159]
[1728993756392,0.09228634,65497.0,65496.0,0.618159]
[1728993756791,0.09328634,65497.0,65496.0,0.619159]
[1728993758795,0.5300427,65497.0,65496.0,0.61911885]
[1728993760695,0.43775636,65497.0,65496.0,0.61911885]
[1728993761798,0.3608,65508.0,65507.0,0.076346]
[1728993761996,0.07634,65513.0,65512.0,0.07634]
[1728993762201,0.07634,65513.0,65512.0,0.25634]
[1728993763799,0.2288474,65513.0,65512.0,0.25634]
[1728993764205,0.2288474,65513.0,65512.0,0.25734]
[1728993764596,0.2288474,65513.0,65512.0,0.25834]
[1728993764797,0.07634,65513.0,65512.0,0.25834]
[1728993765001,0.1525074,65516.0,65512.0,0.25834]
[1728993765202,0.1677581,65515.0,65514.0,0.076338]
[1728993765402,0.031,65520.0,65512.0,0.002]
[1728993765403,0.1372153,65516.0,65512.0,0.002]
[1728993765596,0.3608,65526.0,65515.0,0.3608]
[1728993765797,0.1372139,65516.0,65515.0,0.3608]
[1728993765996,0.1372139,65518.0,65517.0,0.076335]
[1728993766205,0.1372139,65520.0,65519.0,0.076332]
[1728993766407,0.1372139,65521.0,65520.0,0.076331]
[1728993766611,0.3608,65528.0,65527.0,0.076323]
[1728993766814,0.40765212,65528.0,65527.0,0.04868185]
[1728993767195,0.04685212,65528.0,65527.0,0.04868185]
[1728993767502,0.076316,65533.0,65525.0,0.5408]
[1728993767809,0.076316,65533.0,65532.0,0.18]
[1728993768009,0.076316,65533.0,65532.0,0.256317]
[1728993768404,0.4540628,65536.0,65534.0,0.076315]
[1728993768606,0.4532628,65536.0,65534.0,0.076315]
[1728993769219,0.076314,65535.0,65534.0,0.076315]
[1728993769907,0.076314,65535.0,65534.0,0.077315]
[1728993770506,0.076314,65535.0,65534.0,0.078315]
[1728993770703,0.076314,65535.0,65534.0,0.002]
[1728993771809,0.10579814,65535.0,65534.0,0.002]
[1728993778009,0.076314,65535.0,65534.0,0.002]
[1728993779014,0.076314,65535.0,65522.0,0.0036]
[1728993779015,0.48724358,65535.0,65522.0,0.0036]
[1728993779311,0.07633,65521.0,65520.0,0.07993]
[1728993779517,0.07633,65521.0,65520.0,0.07633]
[1728993780616,0.54164,65523.0,65522.0,0.076329]
[1728993780617,0.36164,65523.0,65522.0,0.076329]
[1728993780813,0.076324,65527.0,65526.0,0.076322]
[1728993781020,0.3608,65529.0,65528.0,0.076322]
[1728993781212,0.076318,65532.0,65531.0,0.076318]
[1728993781415,0.076318,65532.0,65531.0,0.256318]
[1728993781714,0.3608,65535.0,65534.0,0.076315]
[1728993781914,0.076313,65536.0,65535.0,0.076314]
[1728993782225,0.10579505,65536.0,65535.0,0.076314]
[1728993782609,0.10579349,65536.0,65535.0,0.076314]
[1728993784025,0.076313,65536.0,65535.0,0.076314]
[1728993784321,0.078313,65536.0,65535.0,0.077314]
[1728993784524,0.078313,65536.0,65535.0,0.076314]
[1728993784525,0.24674862,65536.0,65535.0,0.076314]
[1728993784825,0.38970508,65536.0,65535.0,0.077314]
[1728993785024,0.11569798,65536.0,65535.0,0.077314]
[1728993785417,0.2360708,65536.0,65535.0,0.077314]
[1728993785624,0.11569798,65536.0,65535.0,0.077314]
[1728993786526,0.11569798,65536.0,65535.0,0.078314]
[1728993786923,0.19201098,65536.0,65535.0,0.078314]
[1728993787125,0.19200901,65536.0,65535.0,0.078314]
[1728993787530,0.37200901,65536.0,65535.0,0.078314]
[1728993787725,0.42674773,65536.0,65535.0,0.002]
[1728993788431,0.88550773,65536.0,65535.0,0.002]
[1728993788629,0.42774773,65536.0,65535.0,0.002]
[1728993789321,1.02848083,65536.0,65535.0,0.002]
[1728993789625,1.02848083,65536.0,65524.0,0.0036]
[1728993789626,0.076325,65525.0,65524.0,0.0036]
[1728993789828,0.65449601,65525.0,65521.0,0.076329]
[1728993790034,0.076331,65522.0,65521.0,0.076328]
[1728993790230,0.19002701,65522.0,65521.0,0.076328]
[1728993791435,0.076331,65522.0,65521.0,0.076328]
[1728993792735,0.080331,65522.0,65521.0,0.076328]
[1728993794225,0.076335,65517.0,65513.0,0.076338]
[1728993794435,0.256338,65514.0,65513.0,0.076338]
[1728993794736,0.256338,65514.0,65510.0,0.437142]
[1728993794737,0.076342,65511.0,65510.0,0.437142]
[1728993794935,0.256342,65511.0,65510.0,0.437142]
[1728993796123,0.256342,65511.0,65510.0,0.3608]
[1728993796325,0.256342,65511.0,65510.0,0.437143]
[1728993796532,0.256342,65511.0,65510.0,0.447143]
[1728993797128,0.076342,65511.0,65510.0,0.447143]
[1728993797329,0.076338,65514.0,65513.0,0.076338]
[1728993797838,0.3608,65515.0,65514.0,0.076338]
[1728993798232,0.437137,65515.0,65514.0,0.076338]
[1728993799232,0.437137,65515.0,65514.0,0.077338]
[1728993799438,0.55087218,65515.0,65514.0,0.077338]
[1728993800136,0.55087218,65515.0,65514.0,0.078338]
[1728993800332,0.5508708,65515.0,65514.0,0.078338]
[1728993801437,0.70316846,65515.0,65514.0,0.078338]
[1728993802138,0.5508708,65515.0,65514.0,0.078338]
[1728993802338,0.70312262,65515.0,65514.0,0.078338]
[1728993803141,0.5508708,65515.0,65514.0,0.078338]
[1728993803637,0.70310819,65515.0,65514.0,0.078338]
[1728993804026,0.62677119,65515.0,65514.0,0.078338]
[1728993804228,0.1137338,65515.0,65514.0,0.078338]
[1728993804440,0.06687436,65515.0,65514.0,0.536258]
[1728993804738,0.13699452,65524.0,65523.0,0.076328]
[1728993805042,0.06686206,65524.0,65523.0,0.256328]
[1728993805245,0.10581003,65524.0,65523.0,0.256328]
[1728993805542,0.14318806,65524.0,65523.0,0.256328]
[1728993805850,0.1900398,65524.0,65523.0,0.256328]
[1728993806138,0.1930398,65524.0,65523.0,0.257328]
[1728993806335,0.26994142,65524.0,65523.0,0.258328]
[1728993806538,0.080326,65524.0,65523.0,0.258328]
[1728993808938,0.080326,65524.0,65523.0,0.002]
[1728993812832,0.080326,65524.0,65523.0,0.258328]
[1728993814342,0.004,65524.0,65523.0,0.258328]
[1728993814535,0.11771933,65524.0,65523.0,0.258328]
[1728993814737,0.11771933,65524.0,65519.0,0.0326]
[1728993814931,0.11371933,65523.0,65522.0,0.076329]
[1728993816145,0.11371933,65523.0,65522.0,0.617129]
[1728993816737,0.11370623,65523.0,65522.0,0.617129]
[1728993816934,0.11370623,65523.0,65522.0,1.074969]
[1728993817134,0.16754823,65527.0,65526.0,0.076324]
[1728993817330,0.16754823,65527.0,65526.0,0.256324]
[1728993817537,0.16754823,65530.0,65529.0,0.076321]
[1728993817743,0.13105935,65533.0,65529.0,0.076321]
[1728993817744,0.16754823,65531.0,65530.0,0.07632]
[1728993818042,0.05474335,65532.0,65531.0,0.076318]
[1728993818232,0.13105935,65533.0,65532.0,0.076317]
[1728993818435,0.05474335,65533.0,65532.0,0.076317]
[1728993819735,0.05474335,65533.0,65530.0,0.17843803]
[1728993819939,0.05474335,65533.0,65532.0,0.076317]
[1728993820740,0.05574335,65533.0,65532.0,0.077317]
[1728993821137,0.05673762,65533.0,65532.0,0.078317]
[1728993821329,0.002,65533.0,65532.0,0.078317]
[1728993822642,0.078316,65533.0,65532.0,0.078317]
[1728993824043,0.002,65533.0,65532.0,0.078317]
[1728993824249,0.078316,65533.0,65532.0,0.078317]
[1728993827347,0.002,65533.0,65532.0,0.078317]
[1728993829543,0.03147671,65533.0,65532.0,0.05449693]
[1728993829747,0.06884545,65533.0,65532.0,0.05449693]
[1728993830044,0.11568463,65533.0,65532.0,0.05449693]
[1728993832049,0.11568429,65533.0,65532.0,0.05449693]
[1728993832843,0.11568429,65533.0,65532.0,0.51229693]
[1728993834942,0.23623095,65533.0,65532.0,0.51229693]
[1728993835143,0.11568429,65533.0,65532.0,0.51229693]
[1728993835547,0.06884525,65533.0,65532.0,0.51229693]
[1728993836048,0.11568429,65533.0,65532.0,0.51229693]
[1728993836551,0.002,65533.0,65532.0,0.51229693]
[1728993836744,0.001,65533.0,65532.0,0.51129693]
[1728993836946,0.002,65533.0,65532.0,0.51229693]
[1728993837344,0.079901,65546.0,65532.0,0.51129693]
[1728993837651,0.076301,65546.0,65545.0,0.256302]
[1728993837852,0.076301,65546.0,65545.0,0.076302]
[1728993838654,0.077301,65546.0,65545.0,0.076302]
[1728993839746,0.077301,65546.0,65545.0,0.256302]
[1728993840157,0.076301,65546.0,65545.0,0.257302]
[1728993840948,0.076301,65546.0,65545.0,0.258302]
[1728993841946,0.076301,65546.0,65545.0,0.078302]
[1728993842460,0.256301,65546.0,65545.0,0.002]
[1728993842951,0.18,65546.0,65545.0,0.002]
[1728993843257,0.20947661,65546.0,65545.0,0.002]
[1728993843453,0.076313,65536.0,65535.0,0.079911]
[1728993843654,0.076313,65536.0,65535.0,0.076311]
[1728993843954,0.076317,65533.0,65532.0,0.076315]
[1728993844156,0.617117,65533.0,65527.0,0.00228908]
[1728993844353,0.076322,65530.0,65529.0,0.07632]
[1728993844548,0.10580425,65530.0,65529.0,0.07632]
[1728993844951,0.076322,65528.0,65527.0,0.00228908]
[1728993845155,0.10580425,65528.0,65527.0,0.07861208]
[1728993845655,0.10580425,65528.0,65527.0,0.10581278]
[1728993845856,0.02948225,65528.0,65527.0,0.02948978]
[1728993846057,0.10580438,65528.0,65527.0,0.00228908]
[1728993846358,0.076329,65522.0,65521.0,0.10330706]
[1728993846552,0.10581138,65522.0,65521.0,0.10330806]
[1728993847156,0.10581138,65522.0,65521.0,0.07633]
[1728993847663,0.10781138,65522.0,65520.0,0.02746458]
[1728993847851,0.076337,65515.0,65514.0,0.076337]
[1728993848252,0.10582598,65515.0,65514.0,0.076337]
[1728993848946,0.10582598,65515.0,65514.0,0.081337]
[1728993849153,1.46e-05,65515.0,65514.0,0.081337]
[1728993849346,0.076338,65515.0,65514.0,0.081337]
[1728993849751,0.0311,65516.0,65514.0,0.185]
[1728993849955,0.0311,65516.0,65515.0,0.076337]
[1728993850156,0.076325,65526.0,65522.0,0.076329]
[1728993850363,0.076326,65525.0,65522.0,0.256329]
[1728993850955,0.437128,65523.0,65522.0,0.256329]
[1728993851164,0.437128,65523.0,65518.0,0.076333]
[1728993851165,0.076334,65519.0,65518.0,0.076333]
[1728993851762,0.076334,65519.0,65515.0,0.076338]
[1728993851763,0.076336,65516.0,65515.0,0.076338]
[1728993851961,0.65451786,65516.0,65515.0,0.076338]
[1728993852651,0.83830711,65516.0,65515.0,0.076338]
[1728993852852,1.29622711,65516.0,65507.0,0.00228954]
[1728993853051,0.617145,65508.0,65507.0,0.00228954]
[1728993853262,0.65453275,65508.0,65507.0,0.00228954]
[1728993854152,0.076356,65500.0,65499.0,0.076356]
[1728993854352,0.617156,65500.0,65499.0,0.076356]
[1728993854969,0.5408,65500.0,65499.0,0.076356]
[1728993855267,0.617154,65500.0,65499.0,0.076356]
[1728993855657,0.65454941,65500.0,65499.0,0.076356]
[1728993855857,0.47454941,65500.0,65499.0,0.084356]
[1728993856363,0.617154,65500.0,65499.0,0.084356]
[1728993856575,0.617154,65500.0,65499.0,0.098356]
[1728993857051,0.617154,65500.0,65499.0,0.084356]
[1728993857259,0.617154,65500.0,65499.0,0.086356]
[1728993857459,0.617154,65500.0,65499.0,0.002]
[1728993857758,0.617154,65500.0,65499.0,0.005]
[1728993858567,0.18,65500.0,65499.0,0.005]
[1728993858769,0.256354,65500.0,65499.0,0.005]
[1728993859162,0.28585253,65500.0,65499.0,0.005]
[1728993859862,0.256354,65500.0,65490.0,0.0036]
[1728993860062,0.256354,65500.0,65488.0,0.3608]
[1728993860063,0.076367,65490.0,65489.0,0.076367]
[1728993860366,0.256367,65490.0,65489.0,0.076367]
[1728993860669,0.076368,65488.0,65487.0,0.07866025]
[1728993861060,0.256367,65490.0,65489.0,0.076367]
[1728993861367,0.0636,65492.0,65491.0,0.076365]
[1728993861368,0.0305,65492.0,65491.0,0.076365]
[1728993861769,0.3608,65495.0,65494.0,0.076361]
[1728993861971,0.18,65499.0,65494.0,0.18]
[1728993862163,0.076357,65499.0,65498.0,0.076357]
[1728993862572,0.0305,65501.0,65496.0,0.3608]
[1728993862769,0.106853,65501.0,65500.0,0.076354]
[1728993863375,0.0305,65501.0,65500.0,0.076354]
[1728993863570,0.106853,65501.0,65500.0,0.076354]
[1728993864270,0.106853,65501.0,65500.0,0.077354]
[1728993865170,0.106853,65501.0,65500.0,0.078354]
[1728993865367,0.286853,65501.0,65500.0,0.078354]
[1728993868166,0.286853,65501.0,65500.0,0.002]
[1728993868371,0.286853,65501.0,65500.0,0.078354]
[1728993871585,0.286853,65501.0,65500.0,0.002]
[1728993872865,0.647653,65501.0,65500.0,0.002]
[1728993873585,1.105653,65501.0,65500.0,0.002]
[1728993873970,0.076364,65492.0,65491.0,0.0036]
[1728993874280,0.076366,65490.0,65486.0,0.07637]
[1728993874478,0.076366,65490.0,65483.0,0.139774]
[1728993874778,0.076366,65490.0,65483.0,0.107774]
[1728993874779,0.076373,65484.0,65483.0,0.107774]
[1728993874980,0.076373,65484.0,65476.0,0.0071]
[1728993874981,0.285874,65484.0,65476.0,0.032]
[1728993875175,0.105875,65483.0,65480.0,0.076378]
[1728993875877,0.105875,65483.0,65481.0,0.076376]
[1728993876074,0.14327998,65483.0,65480.0,0.076378]
[1728993876477,0.14327998,65483.0,65482.0,0.3718]
[1728993876776,0.256371,65486.0,65482.0,0.3718]
[1728993876982,0.14328342,65485.0,65484.0,0.076373]
[1728993877971,0.076374,65483.0,65482.0,0.3668]
[1728993878171,0.14328406,65483.0,65482.0,0.3668]
[1728993878584,0.14328406,65483.0,65482.0,0.004]
[1728993878877,0.14328406,65483.0,65482.0,0.078375]
[1728993879285,0.06691006,65483.0,65482.0,0.078375]
[1728993879777,0.06690908,65483.0,65482.0,0.078375]
[1728993879977,0.02950536,65483.0,65482.0,0.078375]
[1728993880374,0.10587936,65483.0,65482.0,0.080375]
[1728993881072,0.02950536,65483.0,65482.0,0.080375]
[1728993881577,0.076374,65483.0,65482.0,0.080375]
[1728993881777,0.437168,65489.0,65482.0,0.20852575]
[1728993881977,0.076368,65488.0,65487.0,0.07604742]
[1728993882182,0.256368,65488.0,65487.0,0.07604742]
[1728993882479,0.076373,65484.0,65483.0,0.16752876]
[1728993882671,0.256373,65484.0,65483.0,0.18979388]
[1728993883084,0.256373,65484.0,65483.0,0.11341988]
[1728993883473,0.256373,65484.0,65483.0,0.19079388]
[1728993884181,0.256373,65484.0,65483.0,0.19179388]
[1728993884584,0.076373,65484.0,65483.0,0.19179388]
[1728993884882,0.07637,65487.0,65486.0,0.076368]
[1728993885080,0.07637,65487.0,65486.0,0.36978788]
[1728993885281,0.07637,65487.0,65486.0,0.28107439]
[1728993885684,0.07637,65487.0,65486.0,0.20470639]
[1728993885877,0.07637,65487.0,65486.0,0.11341988]
[1728993886278,0.07837,65487.0,65486.0,0.11341988]
[1728993886789,0.25837,65487.0,65486.0,0.11341988]
[1728993886982,0.26037,65487.0,65486.0,0.11341988]
[1728993887184,0.26037,65487.0,65486.0,0.20470639]
[1728993888692,0.26037,65487.0,65486.0,0.11341988]
[1728993888874,0.26037,65487.0,65486.0,0.20470639]
[1728993889076,0.26037,65487.0,65486.0,0.11341988]
[1728993889577,0.26037,65487.0,65486.0,0.07609785]
[1728993889779,0.076373,65484.0,65483.0,0.437173]
[1728993890089,0.004,65487.0,65483.0,0.437173]
[1728993890287,0.004,65487.0,65486.0,0.256371]
[1728993890978,0.002,65487.0,65486.0,0.256371]
[1728993891578,0.002,65487.0,65486.0,0.617171]
[1728993892484,0.004,65487.0,65486.0,0.617171]
[1728993892988,0.076358,65497.0,65496.0,0.076359]
[1728993893690,0.076354,65502.0,65501.0,0.076353]
[1728993894982,0.084354,65502.0,65501.0,0.077353]
[1728993895584,0.086354,65502.0,65501.0,0.078353]
[1728993896085,0.086354,65502.0,65501.0,0.439153]
[1728993896786,0.01,65502.0,65501.0,0.469753]
[1728993897782,0.01,65502.0,65501.0,0.499753]
[1728993898180,0.01,65502.0,65501.0,0.61178282]
[1728993899390,0.01,65502.0,65501.0,0.57573475]
[1728993899689,0.01,65502.0,65501.0,0.6875616]
[1728993900494,0.1836,65514.0,65501.0,1.17322685]
[1728993900495,0.0036,65514.0,65501.0,1.17322685]
[1728993900690,0.0044,65521.0,65513.0,0.5408]
[1728993900893,0.076332,65519.0,65518.0,0.12189001]
[1728993901192,0.076332,65519.0,65518.0,0.04555701]
[1728993901386,0.212,65520.0,65516.0,0.12189201]
[1728993901586,0.076335,65517.0,65516.0,0.12189201]
[1728993901786,0.076319,65531.0,65516.0,0.18]
[1728993901990,0.076326,65526.0,65525.0,0.256323]
[1728993902391,0.076326,65526.0,65525.0,0.076323]
[1728993902589,0.076328,65523.0,65522.0,0.36172]